bitfinex/quotes_ETHUSD_20250328
["timestamp","ask_amount","ask_price","bid_price","bid_amount"]
[1743138476231,1.5099,1933.3,1932.7,0.517387]
[1743138476435,1.5099,1933.1,1932.4,8.17479]
[1743138476730,1.5099,1933.1,1932.5,0.05173173]
[1743138476918,8.84853263,1933.1,1932.3,35.00912]
[1743138477087,2.85869257,1933.0,1932.3,29.834]
[1743138477284,1.5099,1932.9,1932.3,29.834]
[1743138477489,4.5099,1932.9,1932.3,29.834]
[1743138477714,4.56153263,1932.9,1932.3,29.834]
[1743138478103,4.56153263,1932.9,1932.4,0.0517398]
[1743138478301,4.5099,1932.9,1932.4,0.0517398]
[1743138478701,0.12080105,1932.8,1932.4,0.0517398]
[1743138478912,0.05163263,1932.8,1932.3,29.834]
[1743138479317,0.05163263,1932.8,1932.4,0.05174222]
[1743138480309,4.56153263,1932.9,1932.4,0.05174222]
[1743138480628,0.12080105,1932.7,1932.4,0.05174222]
[1743138480828,4.56153263,1932.9,1932.4,0.05174222]
[1743138481216,0.12080105,1932.8,1932.4,0.05174222]
[1743138481516,1.5099,1932.9,1932.5,14.5]
[1743138481698,0.12001835,1932.7,1932.3,29.834]
[1743138481906,1.5409,1932.6,1932.3,29.834]
[1743138482723,1.5409,1932.6,1932.1,5.17555]
[1743138482915,1.5409,1932.6,1932.1,6.361692]
[1743138483317,1.5409,1932.6,1932.2,5.22718166]
[1743138483722,1.5409,1932.6,1932.3,5.17512]
[1743138483924,1.5409,1932.6,1932.4,0.05174144]
[1743138484125,0.11996943,1932.5,1932.4,0.05174144]
[1743138484520,0.11996943,1932.5,1932.1,6.361882]
[1743138484724,10.08705994,1932.5,1931.7,1.605]
[1743138485032,2.80705994,1932.1,1931.6,29.852]
[1743138485234,0.28070599,1932.0,1931.6,29.852]
[1743138485398,1.5409,1931.9,1931.6,29.852]
[1743138485827,0.1190398,1931.8,1931.6,29.852]
[1743138486038,2.97773237,1931.8,1930.9,37.02677296]
[1743138486235,1.5409,1931.7,1931.0,0.0517705]
[1743138486525,0.11150398,1931.7,1931.4,5.17741]
[1743138486806,1.5409,1931.9,1931.5,5.695021]
[1743138487307,8.8199,1932.0,1931.6,0.05176073]
[1743138487532,0.11150398,1931.8,1931.6,5.17694]
[1743138487723,8.8199,1932.0,1931.6,5.17694]
[1743138487920,9.70189,1932.0,1931.4,5.17743]
[1743138488324,9.70189,1932.0,1931.3,6.78274]
[1743138488325,0.11150398,1931.9,1931.3,6.78274]
[1743138488520,0.11150398,1931.9,1931.3,5.17774]
[1743138488729,0.11150398,1931.9,1931.3,19.6778]
[1743138489053,1.512,1931.5,1930.9,29.854]
[1743138489341,0.11003506,1931.4,1931.1,5.17836]
[1743138489502,0.11003506,1931.4,1931.2,5.22984167]
[1743138489707,0.11003506,1931.4,1931.2,6.27055184]
[1743138489926,7.277,1931.7,1931.2,5.17796]
[1743138490139,7.277,1931.7,1931.1,5.17834]
[1743138490313,4.43125994,1931.6,1930.9,49.53287]
[1743138490510,0.55316105,1931.5,1930.9,49.53287]
[1743138490721,0.55316105,1931.5,1930.9,54.71156]
[1743138490926,0.44312599,1931.5,1930.9,44.354]
[1743138491125,0.10905552,1931.4,1930.9,49.53287]
[1743138491439,0.44312599,1931.5,1930.9,49.53287]
[1743138491629,0.44312599,1931.5,1931.0,5.23036336]
[1743138491833,0.10871263,1931.4,1931.0,5.23036336]
[1743138492002,0.10871263,1931.4,1931.1,5.17819]
[1743138492207,1.6242,1931.6,1931.1,5.17819]
[1743138492423,0.10871263,1931.3,1931.1,5.17819]
[1743138492637,1.6242,1931.6,1931.1,5.17819]
[1743138492839,2.81432,1931.6,1931.1,5.17819]
[1743138493018,0.10871263,1931.5,1931.1,5.17819]
[1743138493711,0.10871263,1931.5,1930.9,44.354]
[1743138493914,0.10871263,1931.5,1931.0,0.05176993]
[1743138494340,0.10871263,1931.5,1931.1,5.17839]
[1743138494538,1.6242,1931.6,1931.2,0.56960959]
[1743138494839,0.10871263,1931.4,1931.1,5.17839]
[1743138495047,1.6242,1931.6,1931.1,5.17839]
[1743138495222,0.10871263,1931.3,1931.2,5.22989059]
[1743138495575,1.5888,1932.0,1931.2,6.74133059]
[1743138495712,8.8618,1932.0,1931.3,5.85181306]
[1743138495912,11.66885994,1932.0,1931.3,0.67413306]
[1743138496161,0.16029628,1931.9,1931.3,0.67413306]
[1743138496332,0.10866365,1931.9,1931.3,0.67413306]
[1743138496536,0.10866365,1931.9,1930.9,47.16105994]
[1743138496537,4.39585994,1931.8,1930.9,56.22312]
[1743138496711,0.05163263,1931.7,1930.9,56.22312]
[1743138496914,1.66240904,1931.6,1930.9,45.8656]
[1743138497114,1.5559,1931.6,1930.9,14.5]
[1743138497345,0.10650904,1931.5,1930.9,14.5]
[1743138497514,7.42914167,1931.5,1930.8,5.17897]
[1743138497850,8.60835183,1931.5,1930.9,0.0517773]
[1743138498345,8.5567192,1931.5,1930.9,0.0517773]
[1743138498931,8.45021016,1931.5,1930.9,0.0517773]
[1743138499136,4.45169257,1931.4,1930.6,40.22821]
[1743138499442,2.54320735,1931.4,1930.8,5.17907]
[1743138499648,2.54320735,1931.4,1930.9,5.23065922]
[1743138499946,2.43802102,1931.4,1930.9,0.05177922]
[1743138500463,2.43802102,1931.4,1930.7,5.17946]
[1743138500658,1.6132,1931.3,1930.7,5.17946]
[1743138500828,1.71838633,1931.3,1930.7,5.17946]
[1743138501033,1.71838633,1931.3,1930.8,5.17918]
[1743138501248,1.6132,1931.3,1930.6,35.0487]
[1743138501432,1.6132,1931.3,1930.6,29.869]
[1743138501638,1.6132,1931.3,1930.6,35.04866]
[1743138501864,0.10489234,1931.2,1930.6,35.04866]
[1743138502062,0.10489234,1931.2,1930.7,5.23120199]
[1743138502247,1.6132,1931.3,1931.0,5.17852]
[1743138502424,1.5599,1931.6,1931.2,10.35584]
[1743138502623,1.5599,1931.6,1931.0,5.17845]
[1743138502831,1.5599,1931.6,1931.0,6.214188]
[1743138503030,1.5599,1931.6,1931.0,1.035738]
[1743138503322,1.5599,1931.6,1931.0,6.214378]
[1743138503630,2.85869257,1931.6,1931.0,1.035738]
[1743138503836,1.6666,1931.5,1931.1,0.05177505]
[1743138504830,1.6666,1931.5,1931.0,0.05177498]
[1743138505352,1.6666,1931.5,1930.8,6.83315]
[1743138505574,1.71823263,1931.5,1930.8,5.17915]
[1743138505731,1.6666,1931.5,1930.9,0.517915]
[1743138506229,1.6666,1931.5,1931.0,0.05177507]
[1743138507123,1.6666,1931.5,1930.8,10.3582]
[1743138507452,1.6666,1931.5,1930.8,10.3581]
[1743138507658,1.6666,1931.5,1930.8,5.17902]
[1743138507968,1.6666,1931.5,1930.9,10.92728899]
[1743138508130,1.6666,1931.5,1930.9,5.696632]
[1743138508330,1.6666,1931.5,1930.9,5.748409]
[1743138509157,1.6666,1931.5,1930.9,0.569679]
[1743138509355,1.6666,1931.5,1930.9,5.748499]
[1743138509553,1.6666,1931.5,1931.0,0.5748499]
[1743138509728,1.6666,1931.5,1931.1,0.05177702]
[1743138510659,1.6666,1931.5,1931.1,0.05177703]
[1743138511055,1.6666,1931.5,1931.0,0.5748499]
[1743138511929,1.6666,1931.5,1930.8,5.17914]
[1743138512467,1.6666,1931.5,1930.8,5.17897]
[1743138512834,1.6666,1931.5,1930.9,5.23069735]
[1743138513034,1.6666,1931.5,1930.9,0.05177735]
[1743138513251,1.6666,1931.5,1930.9,5.23045735]
[1743138513450,1.6666,1931.5,1931.1,5.17824]
[1743138513734,1.6666,1931.5,1931.3,5.17774]
[1743138514047,1.6666,1931.5,1931.2,5.17807]
[1743138514563,1.6074,1931.7,1931.1,5.17813]
[1743138515063,1.6074,1931.7,1931.0,7.60085689]
[1743138515260,1.6074,1931.7,1931.1,5.93837569]
[1743138515450,1.6074,1931.7,1931.2,0.05176738]
[1743138515758,1.6074,1931.7,1931.2,5.17807]
[1743138516135,1.5574,1931.7,1931.2,5.17807]
[1743138516337,1.5574,1931.7,1931.1,5.93847569]
[1743138516647,1.5574,1931.7,1931.2,5.82350448]
[1743138516850,1.5574,1931.7,1931.3,5.17773]
[1743138517060,1.5574,1931.7,1931.4,0.05176656]
[1743138517945,1.5574,1931.7,1931.2,0.59384757]
[1743138518256,1.5574,1931.7,1931.2,5.77193757]
[1743138518462,1.5574,1931.7,1931.3,0.57719376]
[1743138518762,1.5574,1931.7,1931.0,12.25636116]
[1743138519062,1.5574,1931.7,1931.0,6.68933]
[1743138519228,1.5992,1931.5,1930.8,1.02321478]
[1743138519433,1.65083263,1931.5,1930.8,6.20239478]
[1743138519634,1.5992,1931.5,1930.9,0.6720165]
[1743138520664,1.65083263,1931.5,1930.9,0.6720165]
[1743138520861,1.5992,1931.5,1930.9,0.67201652]
[1743138521566,1.5575,1931.3,1930.8,1.02321478]
[1743138522261,1.5575,1931.3,1930.9,0.05177947]
[1743138523166,1.5575,1931.3,1930.9,5.23065947]
[1743138523343,1.5575,1931.3,1930.9,5.23056947]
[1743138523960,1.5575,1931.3,1930.9,0.05177947]
[1743138524167,1.5575,1931.3,1930.9,0.62541742]
[1743138524351,1.5575,1931.3,1930.8,1.02321478]
[1743138524748,1.5575,1931.3,1930.6,49.54858]
[1743138525061,4.10064416,1931.3,1930.7,5.17935]
[1743138526140,4.10064416,1931.3,1930.7,5.17939]
[1743138526537,4.10064416,1931.3,1930.8,0.05178118]
[1743138526848,4.10064416,1931.3,1930.8,0.52311712]
[1743138527258,4.10064416,1931.3,1930.6,35.04855]
[1743138527457,4.10064416,1931.3,1930.7,5.17934]
[1743138530076,2.54314416,1931.3,1930.6,35.04873]
[1743138530299,2.54314416,1931.1,1930.6,29.869]
[1743138530457,2.54314416,1930.9,1930.6,29.869]
[1743138531293,1.69833263,1931.0,1930.6,32.8559]
[1743138531579,1.6467,1931.0,1930.7,0.05178274]
[1743138532154,1.6467,1931.0,1930.7,5.23123274]
[1743138532754,1.6467,1931.0,1930.7,10.41057274]
[1743138532986,1.6467,1931.0,1930.7,5.17934]
[1743138533183,1.6467,1931.0,1930.7,5.23112344]
[1743138533350,1.6467,1931.0,1930.8,0.52311234]
[1743138533891,4.18984416,1931.0,1930.6,29.869]
[1743138534071,4.18984416,1931.0,1930.3,5.18034]
[1743138534387,4.18984416,1931.0,1930.4,0.05179046]
[1743138534683,11.42584416,1931.0,1930.4,5.23204046]
[1743138535185,8.8827,1931.0,1930.5,5.17985]
[1743138535385,8.8827,1931.0,1930.6,0.5697704]
[1743138535585,8.8827,1931.0,1930.6,0.517985]
[1743138536588,11.42584416,1931.0,1930.3,7.72365416]
[1743138536879,11.42584416,1931.0,1930.5,0.05178591]
[1743138537687,11.42584416,1931.0,1930.4,0.05179084]
[1743138540995,1.6467,1931.0,1930.4,5.23193084]
[1743138541165,1.6467,1931.0,1930.5,0.52319308]
[1743138541361,1.6467,1931.0,1930.6,0.05179083]
[1743138541981,1.6467,1931.0,1930.3,8.11566517]
[1743138541982,1.6467,1931.0,1930.4,0.05179092]
[1743138542271,2.54314416,1930.5,1930.1,0.05]
[1743138542471,4.18904416,1930.2,1930.1,0.05]
[1743138542895,4.88620346,1930.2,1930.1,0.05]
[1743138543098,3.0,1930.1,1929.1,29.884]
[1743138543320,1.5852,1929.3,1928.9,0.1148587]
[1743138543599,2.82139904,1929.2,1928.9,0.1148587]
[1743138543785,1.5852,1929.3,1928.9,0.1148587]
[1743138543983,2.0258599,1929.3,1928.9,0.1148587]
[1743138544409,2.82139904,1929.0,1928.9,0.1148587]
[1743138544693,4.41649904,1929.1,1928.9,0.1148587]
[1743138545522,7.27863263,1929.0,1928.9,0.1148587]
[1743138545707,8.4481458,1929.0,1928.9,0.1148587]
[1743138546198,1.5951,1929.1,1928.9,0.1148587]
[1743138546570,4.41649904,1929.1,1928.9,0.1148587]
[1743138547493,1.5951,1929.1,1928.9,0.1148587]
[1743138550071,8.92183263,1929.4,1928.9,5.35083438]
[1743138550271,1.6462,1929.4,1929.2,5.18335]
[1743138550583,1.6462,1929.7,1929.2,5.18335]
[1743138550777,1.6462,1929.7,1929.3,0.05182537]
[1743138550987,1.6462,1929.7,1928.9,10.4831487]
[1743138551187,0.05163263,1929.6,1928.9,0.1148587]
[1743138551505,0.05163263,1929.6,1928.9,5.2991487]
[1743138551506,1.6462,1929.5,1928.9,5.2991487]
[1743138551893,1.6462,1929.5,1928.9,0.1148587]
[1743138552089,7.27463263,1929.4,1928.9,0.1148587]
[1743138552477,1.604,1929.3,1928.9,0.1148587]
[1743138552672,2.49186326,1929.3,1928.9,0.1148587]
[1743138553917,2.49186326,1929.3,1928.3,29.884]
[1743138553918,3.0,1928.7,1927.6,16.28784979]
[1743138554073,3.0,1927.6,1927.0,0.1148587]
[1743138554278,2.82139904,1927.1,1927.0,0.1148587]
[1743138554501,5.87303167,1927.1,1926.6,0.005]
[1743138554676,2.87303167,1927.1,1926.6,0.005]
[1743138554875,3.0,1927.0,1926.6,0.005]
[1743138555181,0.05163263,1927.4,1926.6,0.005]
[1743138555373,3.0,1927.2,1926.6,0.005]
[1743138555574,2.82139904,1927.0,1926.6,0.005]
[1743138555806,0.05163263,1926.9,1926.6,0.005]
[1743138556691,7.22,1926.8,1926.6,0.005]
[1743138558098,0.05163263,1927.2,1926.6,0.005]
[1743138558284,7.222,1927.1,1926.6,0.005]
[1743138558486,0.05163263,1927.0,1926.6,0.005]
[1743138559511,7.222,1927.4,1926.7,6.85363]
[1743138559679,7.27363263,1927.7,1926.8,0.685363]
[1743138559885,1.5844,1927.9,1927.0,5.18934]
[1743138560104,1.66703263,1928.3,1927.6,5.18764]
[1743138560281,1.6154,1928.3,1927.7,0.05186399]
[1743138560477,1.66703263,1928.3,1927.7,0.5239484]
[1743138560689,1.66703263,1928.3,1927.4,1.5536]
[1743138561180,0.55,1928.2,1927.1,1.6481]
[1743138561390,7.96704512,1928.1,1926.8,9.83804]
[1743138561632,7.96704512,1928.1,1926.9,0.05188175]
[1743138561914,7.96704512,1928.1,1926.9,1.04087392]
[1743138562076,2.78041512,1928.1,1927.0,5.18918]
[1743138562416,2.78041512,1928.1,1927.2,5.18879]
[1743138562622,7.222,1928.0,1927.3,5.24026366]
[1743138562915,7.222,1928.0,1927.1,5.18893]
[1743138563212,7.222,1928.0,1927.2,0.518893]
[1743138563513,0.05163263,1927.9,1927.0,5.18934]
[1743138563708,0.05163263,1927.9,1927.1,5.24099885]
[1743138564285,0.05163263,1927.9,1927.0,5.18934]
[1743138564286,0.05163263,1927.9,1927.0,5.18929]
[1743138564687,0.05163263,1927.9,1927.1,5.24091776]
[1743138564913,0.05163263,1927.9,1927.0,10.37858]
[1743138565118,0.05163263,1927.9,1927.1,1.037858]
[1743138565410,0.05163263,1927.9,1927.2,0.05187888]
[1743138565595,0.05163263,1928.2,1927.2,5.24056888]
[1743138565794,0.05163263,1928.2,1927.2,0.05187888]
[1743138565997,7.27263263,1928.2,1927.5,5.18803]
[1743138566197,7.27263263,1928.2,1927.6,0.518803]
[1743138566519,0.05163263,1928.5,1927.8,5.18704]
[1743138566692,1.5521,1928.6,1928.1,5.18634]
[1743138566890,7.22,1928.7,1928.2,5.23789349]
[1743138567089,7.22,1928.7,1928.1,5.18642]
[1743138567290,7.22,1928.7,1928.2,0.518642]
[1743138567517,7.22,1928.7,1928.2,5.704752]
[1743138567684,7.22,1928.7,1928.2,0.518642]
[1743138568031,7.22,1928.7,1928.2,5.18612]
[1743138568330,7.22,1928.7,1927.9,5.18699]
[1743138568492,7.22,1928.7,1928.1,5.18639]
[1743138568689,7.22,1928.7,1928.3,5.18568]
[1743138569016,7.22,1928.7,1928.2,5.18607]
[1743138569219,7.22,1928.7,1928.3,0.518607]
[1743138569607,7.22,1928.7,1928.1,5.1864]
[1743138570637,7.22,1928.7,1928.2,5.18616]
[1743138570790,7.22,1928.7,1928.3,0.05185345]
[1743138570996,7.22,1928.7,1928.3,5.23755345]
[1743138571312,1.5521,1928.9,1928.6,5.18502]
[1743138571988,1.5293,1929.2,1928.7,5.18483]
[1743138572390,1.5293,1929.2,1928.6,5.18507]
[1743138572795,1.5293,1929.2,1928.7,5.18474]
[1743138573803,1.5293,1929.2,1928.7,5.18472]
[1743138574007,1.5293,1929.2,1928.8,5.18456]
[1743138574724,1.5293,1929.2,1928.7,5.703192]
[1743138574928,1.5293,1929.2,1928.8,5.23637687]
[1743138575393,8.8775,1929.5,1928.9,5.18418]
[1743138575586,8.8775,1929.5,1929.0,0.0518328]
[1743138575792,8.8775,1929.5,1929.0,5.2357828]
[1743138576017,8.8775,1929.5,1928.9,6.22622369]
[1743138576223,8.8775,1929.5,1928.9,5.18418]
[1743138576437,8.8775,1929.5,1928.9,10.36836]
[1743138576730,8.8775,1929.5,1928.9,5.18418]
[1743138576936,8.8775,1929.5,1928.9,10.36834]
[1743138577093,8.8775,1929.5,1929.0,5.18377]
[1743138577301,1.6645,1929.5,1929.0,5.18377]
[1743138578337,1.6645,1929.5,1929.1,5.18363]
[1743138578636,0.05163263,1929.7,1929.1,5.18363]
[1743138579137,8.8722,1929.8,1929.2,5.18345]
[1743138579369,8.8722,1929.8,1929.2,1.036708]
[1743138579572,0.05163263,1929.7,1928.9,5.18411]
[1743138579733,0.05163263,1929.7,1928.9,10.36829]
[1743138580369,0.05163263,1929.7,1929.0,5.18396]
[1743138580840,0.05163263,1929.7,1928.9,5.18411]
[1743138581440,1.624,1929.6,1928.6,5.18503]
[1743138581648,0.05163263,1929.5,1928.6,11.406919]
[1743138581854,0.05163263,1929.5,1928.6,6.221889]
[1743138582162,0.05163263,1929.5,1928.6,10.36985]
[1743138582338,0.05163263,1929.5,1928.7,5.18482]
[1743138582540,0.05163263,1929.5,1928.8,0.0518376]
[1743138582857,1.67563263,1929.6,1929.0,5.18387]
[1743138583075,1.67563263,1929.6,1929.1,0.518387]
[1743138583241,1.624,1929.6,1929.0,5.18385]
[1743138583651,0.52541143,1929.6,1929.0,5.18385]
[1743138583956,0.05163263,1929.5,1928.6,5.1849]
[1743138584124,0.05163263,1929.5,1928.6,10.36989]
[1743138584328,0.05163263,1929.5,1928.7,1.036989]
[1743138584561,0.05163263,1929.5,1928.6,5.1849]
[1743138584935,2.72878249,1929.5,1928.4,36.65689]
[1743138585140,0.05163263,1929.4,1928.5,0.05184488]
[1743138585351,7.204,1929.3,1928.5,0.05184488]
[1743138585538,0.05163263,1929.2,1928.5,5.23709488]
[1743138585736,7.25563263,1929.3,1928.7,10.36952]
[1743138586062,7.25563263,1929.6,1928.9,5.18428]
[1743138586257,7.25563263,1929.6,1928.8,5.18434]
[1743138586861,0.8083,1929.5,1928.8,5.18434]
[1743138587063,0.8083,1929.5,1928.9,5.75441656]
[1743138587271,0.8083,1929.5,1928.9,0.57026656]
[1743138587436,0.8083,1929.5,1929.1,5.18356]
[1743138587635,0.8083,1929.5,1928.9,5.23590256]
[1743138587636,0.8083,1929.5,1929.0,5.18397]
[1743138588269,0.8083,1929.5,1928.9,5.18407]
[1743138588769,0.8083,1929.5,1929.0,10.41965857]
[1743138588939,0.8083,1929.5,1929.0,5.18386]
[1743138589140,0.8083,1929.5,1929.0,5.702246]
[1743138589350,0.8083,1929.5,1929.1,5.18371]
[1743138589750,0.8083,1929.5,1929.0,5.702246]
[1743138590164,0.85993263,1929.5,1929.0,0.518386]
[1743138590469,0.85993263,1929.5,1928.7,6.71012]
[1743138590840,0.85993263,1929.5,1928.7,5.18472]
[1743138591036,0.8083,1929.3,1928.4,29.923]
[1743138591239,0.8083,1929.1,1928.3,0.518596]
[1743138591463,7.25163263,1929.0,1928.4,5.18552]
[1743138592179,7.2,1929.0,1928.5,5.23704562]
[1743138592344,7.2,1929.0,1928.6,5.18499]
[1743138592540,7.2,1929.0,1928.7,0.05184021]
[1743138592941,7.2,1929.0,1928.4,5.18538]
[1743138593270,7.2,1929.0,1928.5,0.57037822]
[1743138593864,7.2,1929.0,1928.5,0.05184022]
[1743138594071,0.8083,1928.9,1928.4,5.18563]
[1743138594370,0.8083,1928.9,1928.5,5.2370854]
[1743138596277,0.8083,1928.9,1928.3,5.1858]
[1743138596442,0.8083,1928.9,1928.4,5.18564]
[1743138596645,0.8083,1928.9,1928.5,0.518564]
[1743138596847,0.8083,1928.9,1928.3,5.18579]
[1743138597963,0.8083,1928.9,1928.2,5.18615]
[1743138598161,2.82414631,1928.7,1928.0,5.1867]
[1743138598448,3.63244631,1928.5,1927.7,5.18749]
[1743138598649,3.63244631,1928.5,1927.8,0.05185685]
[1743138598650,3.63244631,1928.3,1927.8,0.05185685]
[1743138598962,3.63244631,1928.3,1927.3,5.57977949]
[1743138598963,0.8083,1928.1,1927.4,10.3764]
[1743138599163,0.8083,1928.1,1927.5,1.03764]
[1743138599164,0.8083,1928.0,1927.5,1.03764]
[1743138599480,0.8083,1927.8,1927.0,29.916]
[1743138599681,0.85993263,1927.8,1927.2,5.18885]
[1743138600251,2.82414631,1927.7,1927.1,2.9916]
[1743138600547,0.85993263,1927.6,1927.1,8.18063]
[1743138600751,0.8083,1927.6,1927.1,5.18903]
[1743138601060,0.8083,1927.6,1926.9,5.18954]
[1743138601256,0.85993263,1927.6,1926.7,5.18997]
[1743138601565,0.85993263,1927.6,1926.8,0.518997]
[1743138601765,0.8083,1927.6,1927.0,5.18914]
[1743138602483,0.8083,1927.6,1927.0,10.37831]
[1743138602782,0.8083,1927.6,1927.0,5.18914]
[1743138602978,0.8083,1927.6,1927.1,0.05188008]
[1743138603284,0.8083,1927.6,1926.9,5.18964]
[1743138603576,0.8083,1927.6,1927.0,0.518964]
[1743138603776,0.05163263,1927.5,1926.9,5.18967]
[1743138603983,0.05163263,1927.5,1926.8,6.78646]
[1743138604179,0.05163263,1927.5,1926.8,5.18976]
[1743138604355,0.05163263,1927.5,1926.8,10.37957]
[1743138604560,0.05163263,1927.5,1926.8,5.18976]
[1743138604765,0.05163263,1927.5,1926.9,0.518976]
[1743138604954,0.05163263,1927.5,1926.7,5.19009]
[1743138605156,0.05163263,1927.5,1926.6,19.69547]
[1743138605396,0.8083,1927.4,1926.6,14.505]
[1743138605685,0.8083,1927.2,1926.6,0.005]
[1743138605852,7.24563263,1927.1,1926.6,0.005]
[1743138606249,7.194,1927.1,1926.6,0.57647266]
[1743138606454,7.194,1927.1,1926.7,5.19011]
[1743138606664,7.194,1927.1,1926.7,10.3802]
[1743138606862,7.194,1927.1,1926.8,0.05189126]
[1743138607180,0.8083,1927.5,1927.3,5.1886]
[1743138607383,0.8083,1927.9,1927.7,5.18743]
[1743138607688,0.8083,1928.3,1927.8,5.18711]
[1743138607881,0.8083,1928.3,1927.9,5.18683]
[1743138608077,0.8083,1928.3,1928.0,0.05185964]
[1743138608275,0.8083,1928.3,1927.8,5.18723]
[1743138608478,0.8083,1928.3,1927.6,5.18779]
[1743138608655,0.8083,1928.3,1927.7,0.518779]
[1743138608986,0.8083,1928.3,1927.7,5.706279]
[1743138609185,0.05163263,1928.2,1927.6,14.5]
[1743138609386,0.8083,1928.3,1927.7,5.18751]
[1743138609782,0.8083,1928.3,1927.6,19.68773]
[1743138609985,0.8083,1928.0,1926.5,1.527]
[1743138610205,0.8083,1927.7,1927.1,5.18898]
[1743138610360,0.8083,1927.7,1926.6,0.005]
[1743138610361,8.05093263,1927.7,1926.9,5.18953]
[1743138610684,3.0,1927.6,1926.6,5.19537]
[1743138610855,0.85993263,1927.5,1926.8,5.18982]
[1743138611052,0.85993263,1927.5,1927.0,5.18926]
[1743138611256,0.8083,1927.8,1927.3,5.18857]
[1743138611485,0.8083,1927.8,1927.4,0.518857]
[1743138612188,0.8083,1927.8,1927.4,5.1881]
[1743138612769,0.8083,1927.8,1927.3,5.18858]
[1743138612972,0.8083,1927.8,1927.5,5.18806]
[1743138613891,7.189,1928.8,1928.0,5.18648]
[1743138614078,0.05163263,1928.7,1928.0,5.18648]
[1743138614385,0.8083,1928.6,1927.8,5.18723]
[1743138614590,0.05163263,1928.5,1927.8,5.18723]
[1743138614992,0.05163263,1928.5,1927.8,10.3743]
[1743138615186,0.05163263,1928.5,1927.9,5.18696]
[1743138615391,7.23963263,1928.5,1927.9,1.037403]
[1743138615598,7.23963263,1928.5,1927.9,6.224333]
[1743138615959,7.23963263,1928.5,1928.0,5.18667]
[1743138616262,7.23963263,1928.5,1927.9,6.224333]
[1743138616473,7.23963263,1928.5,1928.0,5.18671]
[1743138616676,7.188,1928.5,1928.0,5.8091213]
[1743138616881,8.04793263,1928.6,1928.0,5.8091213]
[1743138617503,0.85993263,1928.6,1928.0,5.8088813]
[1743138618599,0.85993263,1928.6,1928.0,0.6224113]
[1743138618804,0.85993263,1928.6,1927.4,5.18815]
[1743138619008,0.8083,1928.5,1927.5,5.18796]
[1743138619191,0.8083,1928.3,1927.6,5.18767]
[1743138619384,7.23663263,1928.2,1927.6,5.18757]
[1743138619706,7.23663263,1928.2,1927.6,5.706327]
[1743138620001,7.23663263,1928.2,1927.7,5.18733]
[1743138620379,7.23663263,1928.2,1927.6,5.706547]
[1743138620620,7.23663263,1928.2,1927.6,0.518757]
[1743138621103,7.23663263,1928.2,1927.5,5.18794]
[1743138621481,7.23663263,1928.2,1927.6,5.18767]
[1743138622399,7.23663263,1928.2,1927.4,5.18827]
[1743138622805,7.23663263,1928.2,1927.5,5.18805]
[1743138623304,7.23663263,1928.2,1927.6,5.18758]
[1743138623608,7.23663263,1928.2,1927.6,6.225144]
[1743138624114,0.8083,1928.1,1927.4,10.37651]
[1743138624441,0.05163263,1928.0,1927.3,5.18855]
[1743138624705,0.05163263,1928.0,1927.4,5.18823]
[1743138625486,0.8083,1928.1,1927.2,2.82694878]
[1743138625679,0.8083,1928.1,1927.4,5.18814]
[1743138625879,0.8083,1928.1,1927.5,5.18804]
[1743138626092,8.04093263,1928.1,1927.5,5.18804]
[1743138626679,8.04093263,1928.1,1927.6,5.18769]
[1743138626891,8.04093263,1928.1,1927.6,10.37532]
[1743138627111,0.8083,1928.1,1927.8,5.18719]
[1743138627314,0.8083,1928.3,1928.0,5.18668]
[1743138629195,0.8083,1928.3,1928.1,0.05185841]
[1743138629383,0.8083,1928.3,1928.1,5.18644]
[1743138629589,0.8083,1928.3,1928.1,6.223738]
[1743138629807,3.85993263,1928.6,1928.1,6.223738]
[1743138630313,0.85993263,1928.6,1928.1,1.037298]
[1743138630618,0.8083,1928.6,1928.2,5.18617]
[1743138631110,0.8083,1928.6,1928.1,5.18639]
[1743138631314,0.05163263,1928.5,1928.1,1.037293]
[1743138631612,0.05163263,1928.5,1927.9,5.18691]
[1743138631794,0.05163263,1928.5,1927.9,5.18678]
[1743138631994,0.26447398,1928.4,1927.9,5.18678]
[1743138632403,0.26447398,1928.4,1928.1,5.18631]
[1743138632604,0.85993263,1928.6,1928.2,5.704671]
[1743138632794,0.8083,1928.6,1928.2,5.704671]
[1743138632991,0.25071879,1928.5,1928.2,0.518631]
[1743138633303,0.25071879,1928.5,1928.3,5.23761397]
[1743138633503,0.25071879,1928.5,1928.2,5.18616]
[1743138633816,0.25071879,1928.5,1928.1,5.1864]
[1743138634116,0.8083,1928.6,1928.1,5.18625]
[1743138634494,0.25071879,1928.5,1928.1,5.18625]
[1743138634813,0.8083,1928.6,1928.1,5.18625]
[1743138635005,0.8083,1928.6,1928.0,5.18657]
[1743138635185,0.8083,1928.9,1928.5,5.18518]
[1743138635382,0.8083,1928.9,1928.4,5.18563]
[1743138635585,0.25071879,1928.8,1928.4,5.18563]
[1743138635986,0.25071879,1928.8,1928.3,5.18568]
[1743138636186,0.25071879,1928.8,1928.5,5.18527]
[1743138636916,0.25071879,1928.8,1928.5,5.23711574]
[1743138637312,0.25071879,1928.8,1928.5,5.18527]
[1743138637502,0.25071879,1928.8,1928.6,0.05184575]
[1743138637702,0.25071879,1928.8,1928.6,5.18499]
[1743138638092,0.25071879,1928.8,1928.6,5.18497]
[1743138638299,0.25071879,1928.8,1928.2,1.5123]
[1743138638494,0.25071879,1928.8,1928.3,5.18585]
[1743138638700,0.30235142,1928.8,1928.3,5.18585]
[1743138638900,0.25071879,1928.8,1928.4,0.05184956]
[1743138639214,0.25071879,1928.8,1928.4,5.1854]
[1743138640001,0.30235142,1928.8,1928.3,5.18579]
[1743138641032,0.30235142,1928.8,1928.4,5.1856]
[1743138641335,0.25071879,1928.8,1928.5,5.18519]
[1743138641724,0.25071879,1928.8,1928.3,5.18573]
[1743138642028,0.25071879,1928.8,1928.3,5.704303]
[1743138642232,0.25071879,1928.8,1928.4,0.05184561]